Workbook

Sheet First page
C3: RFP Reference No: LIC/CO/IT-BPR/HW/2024-25/07 Dated: 31.12.2024
C5: Indicative Commercial Bid
C7: Bidder Name
C9: Address
C13: Mobile Number
C15: Email Id
C17: Instructions
C18: 1. The cells, where bidder has to input values, are highlighted in green.
C19: 2. No changes should be made to the other cells.
C20: 3. Bidder has to compulsorily quote for all the items.
C21: 4. All quotes needs to be in numbers with no decimal points.
C22: 5. Reference should be made to the technical specifications before quoting the amounts.
D24: Note: Soft copy of this Annexure in the given format is to be submitted
C27: Date:

Sheet Part I
A1: ='First page'!$C$3 -> RFP Reference No: LIC/CO/IT-BPR/HW/2024-25/07 Dated: 31.12.2024
A2: Bidder:
A4: Indicative Commercial Bid - Part I
A5: Category of PC | B5: Description | C5: Quantity | M5: Model-1 | P5: Model-2 | S5: L1 Model Quote (Rupees) (Minimum of B, D) | T5: L1 TOTAL
C6: NZ | D6: NCZ | E6: CZ | F6: EZ | G6: SCZ | H6: SZ | I6: WZ | J6: ECZ | K6: CO | L6: Total (A) | M6: Model | N6: Quote (Rupees) (B) | O6: Total (Rupees) (C) =(A) * (B) | P6: Model | Q6: Quote (Rupees) (D) | R6: Total (Rupees) (E) =(A) * (D) | T6: (Rupees) (Minimum of C, E)
A7: 2A | B7: PC With Windows OS | C7: 1818 | D7: 1119 | E7: 694 | F7: 1015 | G7: 1336 | H7: 1289 | I7: 1920 | J7: 1043 | K7: 763 | L7: =SUM(C7:K7) -> 10997
A8: 2B | B8: PC Without OS | C8: 4888 | D8: 3876 | E8: 2019 | F8: 2891 | G8: 5238 | H8: 5146 | I8: 6971 | J8: 2610 | K8: 0 | L8: =SUM(C8:K8) -> 33639
A9: 2D-1 | B9: Developer PC Without OS | C9: 1 | D9: 0 | E9: 1 | F9: 0 | G9: 11 | H9: 0 | I9: 10 | J9: 0 | K9: 22 | L9: =SUM(C9:K9) -> 45
A10: 2D-2 | B10: Developer PC With Windows OS | C10: 1 | D10: 0 | E10: 2 | F10: 0 | G10: 10 | H10: 2 | I10: 20 | J10: 50 | K10: 130 | L10: =SUM(C10:K10) -> 215
A11: AIO | B11: All In One Desktop | C11: 2 | D11: 1 | E11: 1 | F11: 1 | G11: 0 | H11: 1 | I11: 1 | J11: 1 | K11: 42 | L11: =SUM(C11:K11) -> 50
S12: Total
A13: All prices should be in Rupees
A14: Prices should be exclusive of GST
A15: ORA will be conducted only for Part-I items
A18: Date: | Q18: Signature of the Authorised Signatory

Sheet Part II
A1: ='First page'!$C$3 -> RFP Reference No: LIC/CO/IT-BPR/HW/2024-25/07 Dated: 31.12.2024
A2: Bidder:
A4: Indicative Commercial Bid - Part II
A5: Sr. No. | B5: Specifications for Part II items | C5: Quantity | D5: Unit Price
B6: Storage - For Desktops/AIO/Laptops
A7: 1 | B7: 500 GB SATA III -7200 RPM ROHS Certified | C7: 1
A8: =A7+1 -> 2 | B8: 1 TB SATA III -7200 RPM ROHS Certified | C8: 1
A9: 3 | B9: 256 GB SSD NVMe | C9: 1
A10: 4 | B10: 512 GB SSD NVMe | C10: 1
A11: 5 | B11: 1 TB SSD NVMe | C11: 1
A12: 6 | B12: 2 TB SSD NVMe | C12: 1
A13: 7 | B13: 4 TB SSD NVMe | C13: 1
B14: RAM - For Desktops/Laptops
A15: =A13+1 -> 8 | B15: 8 GB DDR4 2666 MHzROHS Certified | C15: 1
A16: =A15+1 -> 9 | B16: 8 GB DDR4 3200 MHz ROHS Certified | C16: 1
A17: =A16+1 -> 10 | B17: 8 GB DDR5 4800 MHz ROHS Certified | C17: 1
A18: 11 | B18: 16 GB RAM DDR4 2666 MHz ROHS Certified | C18: 1
A19: 12 | B19: 16 GB RAM DDR4 3200 MHz ROHS Certified | C19: 1
A20: 13 | B20: 16 GB DDR5 4800 MHz ROHS Certified | C20: 1
A21: 14 | B21: 32 GB RAM DDR4 2666 MHz ROHS Certified | C21: 1
A22: 15 | B22: 32 GB RAM DDR4 3200 MHz ROHS Certified | C22: 1
A23: 16 | B23: 32 GB DDR5 4800 MHz ROHS Certified | C23: 1
B24: RAM - For AIO
A25: =A23+1 -> 17 | B25: 16 GB DDR4 3200MHz, ROHS Certified | C25: 1
A26: =A25+1 -> 18 | B26: 32 GB DDR4 3200MHz, ROHS Certified | C26: 1
A27: =A26+1 -> 19 | B27: 32 GB DDR5 4800 MHz ROHS Certified | C27: 1
B28: External
A29: =A27+1 -> 20 | B29: 1 TB external Hard Disk with USB | C29: 1
A30: =A29+1 -> 21 | B30: 2 TB external Hard Disk with USB | C30: 1
A31: =A30+1 -> 22 | B31: 4 TB external Hard Disk with USB | C31: 1
A32: 23 | B32: 1TB HDD with TLC | C32: 1
A33: 24 | B33: 1TB SSD with TLC | C33: 1
A34: 25 | B34: 2 TB SSD with TLC | C34: 1
A35: 26 | B35: 4 TB SSD with TLC | C35: 1
A36: 27 | B36: External USB Portable Speakers | C36: 1
A37: 28 | B37: External 8x DVD Writer | C37: 1
B38: Monitor
A39: =A37+1 -> 29 | B39: 19.5" TFT Wide (TCO certified) | C39: 1
A40: =A39+1 -> 30 | B40: 21.5" TFT Wide (TCO Certified) | C40: 1
A41: =A40+1 -> 31 | B41: 23.8" TFT Wide (TCO Certified) | C41: 1
A42: =A41+1 -> 32 | B42: 23.8" TFT Wide Touch (TCO Certified) | C42: 1
B43: Connectors
A44: =A42+1 -> 33 | B44: 104 Keys Mechanical Keyboard | C44: 1
A45: =A44+1 -> 34 | B45: 2 button USB Optical Scroll Mouse with Pad | C45: 1
A46: =A45+1 -> 35 | B46: WIRELESS KEYBOARD | C46: 1
A47: =A46+1 -> 36 | B47: WIRELESS MOUSE | C47: 1
B48: Graphics Card
A49: =A47+1 -> 37 | B49: PCI-e based Graphics Card (2 GB RAM) Nvidia GeForce/AMD Radeon | C49: 1
A50: =A49+1 -> 38 | B50: PCI-e based Graphics Card (4 GB RAM) Nvidia GeForce/AMD Radeon | C50: 1
B51: Off the shelf Software
A52: =A50+1 -> 39 | B52: Acrobat Pro for teams Part no:65324057BA01A12 | C52: 1
A53: =A52+1 -> 40 | B53: CorelDRAW Graphics Suite Enterprise License (incl. 1 Yr. Corel Sure Maintenance) Part number:LCCDGSENTML11 | C53: 1
A54: 41 | B54: CorelDRAW Graphics Suite SU 365-Day Subs Part number:LCCDGSSUB11 | C54: 1
A55: 42 | B55: Windows GGWA - Windows 11 Pro | C55: 1
A56: 43 | B56: Office LTSC Professional Plus 2021- DG7GMGF0D7FX | C56: 1
A57: 44 | B57: Office LTSC Standard 2021 | C57: 1
A58: 45 | B58: Office LTSC Standard for Mac 2021 | C58: 1
B59: Total
A60: All prices should be in Rupees
A61: Prices should be exclusive of GST
A62: No ORA will be conducted for Part-II items
A65: Date: | C65: Signature of the Authorised Signatory

Sheet Buy Back
A1: ='First page'!$C$3 -> RFP Reference No: LIC/CO/IT-BPR/HW/2024-25/07 Dated: 31.12.2024
A2: Bidder:
A4: Indicative Commercial Bid - Buyback
B6: ITEM | C6: Total Estimated Quantity of Hardware items (A) | D6: Base Rate | E6: UNIT RATE (B) | F6: TOTAL ( A x B )
B7: PC | C7: 65106 | D7: 400
B8: AIO | C8: 38 | D8: 1000
A10: All prices should be in Rupees
A11: Prices should be exclusive of GST
A12: No ORA will be conducted for Buy-back items
A14: The above buyback quantity is tentative and is meant to arrive at the L1 vendor.
A15: The exact quantity will be intimated to the vendor at a later stage.
A16: It is therefore mandatory that the rate should be submitted.
A20: Date: | C20: Signature of the Authorised Signatory
